bitfinex-derivatives/quotes_BTCF0:USTF0_20250514
["timestamp","ask_amount","ask_price","bid_price","bid_amount"]
[1747240690288,0.83517828,103530.0,103520.0,0.2569703]
[1747240690491,0.6500517,103530.0,103520.0,0.2559703]
[1747240691805,0.2892517,103530.0,103520.0,0.2559703]
[1747240692200,0.2572517,103530.0,103520.0,0.4179703]
[1747240692399,0.2258517,103530.0,103520.0,0.4179703]
[1747240693202,0.2258517,103530.0,103520.0,0.60309688]
[1747240693398,0.2258517,103530.0,103520.0,0.96389688]
[1747240694602,0.2258517,103530.0,103520.0,0.7787703]
[1747240694805,0.2258517,103530.0,103520.0,0.96389688]
[1747240695705,0.0327,103530.0,103520.0,1.0604919]
[1747240695898,0.3521165,103540.0,103530.0,0.1931517]
[1747240696208,0.223933,103540.0,103530.0,0.83517828]
[1747240696507,0.2414005,103550.0,103540.0,0.193133]
[1747240696697,0.2722005,103550.0,103540.0,0.80465958]
[1747240696899,0.0308,103550.0,103540.0,0.80465958]
[1747240697098,0.0308,103550.0,103540.0,1.06324527]
[1747240697300,0.46893962,103560.0,103550.0,0.1931144]
[1747240697613,0.49973962,103560.0,103550.0,0.47384098]
[1747240697814,0.49973962,103560.0,103550.0,0.2887144]
[1747240698001,0.17997752,103560.0,103550.0,0.83464098]
[1747240698194,0.14917752,103560.0,103550.0,1.09320802]
[1747240698509,0.34227322,103560.0,103550.0,1.09320802]
[1747240698809,0.34427322,103560.0,103550.0,1.09320802]
[1747240699201,0.34227322,103560.0,103550.0,1.09320802]
[1747240699400,0.37457322,103560.0,103550.0,1.09320802]
[1747240699599,0.2293957,103560.0,103550.0,1.09320802]
[1747240700298,0.2273957,103560.0,103550.0,0.90808144]
[1747240700503,0.2273957,103560.0,103550.0,0.54728144]
[1747240700504,0.2597957,103560.0,103550.0,0.54728144]
[1747240701010,0.2923957,103560.0,103550.0,0.54728144]
[1747240701911,0.2943957,103560.0,103550.0,0.54728144]
[1747240702410,0.2953957,103560.0,103550.0,0.54728144]
[1747240702807,0.2953957,103560.0,103550.0,0.29156704]
[1747240703010,0.2973957,103560.0,103550.0,0.48468144]
[1747240703212,0.2973957,103560.0,103550.0,0.35268144]
[1747240703712,0.2953957,103560.0,103550.0,0.35268144]
[1747240703908,0.2983957,103560.0,103550.0,0.35268144]
[1747240704315,0.2983957,103560.0,103550.0,0.51468144]
[1747240704514,0.2953957,103560.0,103550.0,0.51468144]
[1747240704707,0.2973957,103560.0,103550.0,0.51468144]
[1747240705416,0.2963957,103560.0,103550.0,0.51468144]
[1747240707317,0.2963957,103560.0,103550.0,0.32156704]
[1747240707520,0.87232228,103560.0,103550.0,0.162]
[1747240707812,1.15401686,103560.0,103550.0,0.162]
[1747240708019,1.34401686,103560.0,103550.0,0.162]
[1747240708220,0.1931517,103530.0,103520.0,0.7702332]
[1747240708517,0.5539517,103530.0,103520.0,0.2549533]
[1747240708718,0.6492517,103530.0,103520.0,0.2549533]
[1747240709211,0.6492517,103530.0,103520.0,0.2579533]
[1747240709413,0.83437828,103530.0,103520.0,0.003]
[1747240709611,0.83437828,103530.0,103520.0,0.1991703]
[1747240709813,0.83437828,103530.0,103520.0,0.006]
[1747240710214,1.02926743,103530.0,103520.0,0.006]
[1747240710519,0.88414085,103530.0,103520.0,0.003]
[1747240710917,1.06926743,103530.0,103520.0,0.003]
[1747240711110,1.06926743,103530.0,103520.0,1e-07]
[1747240711111,1.63786343,103530.0,103520.0,1e-07]
[1747240711811,0.1931703,103520.0,103510.0,0.14850813]
[1747240712011,0.95199688,103520.0,103510.0,0.14850813]
[1747240713013,0.95199688,103520.0,103510.0,0.14950813]
[1747240713210,0.80199688,103520.0,103510.0,0.15050813]
[1747240713717,1.18199688,103520.0,103510.0,0.15050813]
[1747240713921,0.96199688,103520.0,103510.0,0.00393209]
[1747240715017,0.96199688,103520.0,103510.0,0.0095528]
[1747240715219,1.05860088,103520.0,103510.0,0.0095528]
[1747240715419,1.07306501,103520.0,103510.0,0.0095528]
[1747240716912,0.88793843,103520.0,103510.0,0.0095528]
[1747240717111,1.07306501,103520.0,103510.0,0.1715528]
[1747240719119,0.63133443,103520.0,103510.0,0.1715528]
[1747240719518,0.63133443,103520.0,103510.0,0.2018528]
[1747240719719,0.63133443,103520.0,103510.0,0.1715528]
[1747240720016,0.63133443,103520.0,103510.0,0.2018528]
[1747240720218,0.6168703,103520.0,103510.0,0.3950418]
[1747240720425,0.6168703,103520.0,103510.0,0.2336528]
[1747240720619,0.6168703,103520.0,103510.0,0.4268418]
[1747240722525,0.0316,103520.0,103510.0,0.97276838]
[1747240722819,0.2247703,103520.0,103510.0,1.06937273]
[1747240723019,0.2897175,103540.0,103530.0,0.1931517]
[1747240723231,0.3203175,103540.0,103530.0,0.1931517]
[1747240723414,0.3203175,103540.0,103530.0,0.033]
[1747240723617,0.6811175,103540.0,103530.0,0.2261517]
[1747240724023,0.6811175,103540.0,103530.0,0.033]
[1747240724224,0.7124175,103540.0,103530.0,0.2265]
[1747240724424,0.89754408,103540.0,103530.0,0.2265]
[1747240725424,0.90054408,103540.0,103530.0,0.162]
[1747240725619,1.01054408,103540.0,103530.0,0.162]
[1747240725817,1.01254408,103540.0,103530.0,0.162]
[1747240727128,0.1931517,103530.0,103520.0,0.0302]
[1747240727324,0.83297828,103530.0,103520.0,0.0302]
[1747240727831,0.6478517,103530.0,103520.0,0.0604]
[1747240728333,0.6488517,103530.0,103520.0,0.2224]
[1747240730227,0.6488517,103530.0,103520.0,0.22802071]
[1747240732731,0.83397828,103530.0,103520.0,0.22802071]
[1747240733830,0.83397828,103530.0,103520.0,0.42119101]
[1747240734132,0.83397828,103530.0,103520.0,0.22802071]
[1747240734330,0.6488517,103530.0,103520.0,0.42119101]
[1747240734835,0.2245517,103530.0,103520.0,0.42119101]
[1747240735042,0.2245517,103530.0,103520.0,0.99721759]
[1747240735534,0.2245517,103530.0,103520.0,0.63641759]
[1747240735836,0.1941517,103530.0,103520.0,0.99721759]
[1747240736337,0.1941517,103530.0,103520.0,0.63641759]
[1747240736636,0.1941517,103530.0,103520.0,0.99721759]
[1747240738939,0.1941517,103530.0,103520.0,0.45129101]
[1747240739128,0.5877517,103530.0,103520.0,0.25812071]
[1747240739328,0.5877517,103530.0,103520.0,0.4456703]
[1747240739531,0.6189517,103530.0,103520.0,0.4456703]
[1747240739730,0.80407828,103530.0,103520.0,0.4456703]
[1747240740238,0.6189517,103530.0,103520.0,0.4456703]
[1747240741141,0.6189517,103530.0,103520.0,0.2224]
[1747240741142,0.80407828,103530.0,103520.0,0.2224]
[1747240741538,0.6189517,103530.0,103520.0,0.4155703]
[1747240741739,0.80407828,103530.0,103520.0,0.2224]
[1747240742542,0.80407828,103530.0,103520.0,0.22802071]
[1747240742838,0.80407828,103530.0,103520.0,0.42119101]
[1747240743041,0.80407828,103530.0,103520.0,0.22802071]
[1747240743543,0.80407828,103530.0,103520.0,0.2224]
[1747240743838,0.80407828,103530.0,103520.0,0.162]
[1747240744044,1.00920486,103530.0,103520.0,0.162]
[1747240744252,0.1931703,103520.0,103510.0,0.09413209]
[1747240744444,0.83379688,103520.0,103510.0,0.09413209]
[1747240744642,0.83379688,103520.0,103510.0,0.03243209]
[1747240744946,0.83379688,103520.0,103510.0,0.00193209]
[1747240745141,1.21379688,103520.0,103510.0,0.16393209]
[1747240745442,0.83379688,103520.0,103510.0,0.16393209]
[1747240745635,1.09379688,103520.0,103510.0,0.16393209]
[1747240746146,1.09379688,103520.0,103510.0,0.00293209]
[1747240747145,1.09379688,103520.0,103510.0,0.16493209]
[1747240747445,1.19040088,103520.0,103510.0,0.16493209]
[1747240748248,1.19040088,103520.0,103510.0,0.00293209]
[1747240749143,1.19040088,103520.0,103510.0,0.16493209]
[1747240750148,1.19040088,103520.0,103510.0,0.00293209]
[1747240752339,1.0052743,103520.0,103510.0,0.00293209]
[1747240752653,1.19040088,103520.0,103510.0,0.00293209]
[1747240755041,0.82960088,103520.0,103510.0,0.00293209]
[1747240755345,1.55120088,103520.0,103510.0,0.16493209]
[1747240756136,0.193189,103510.0,103500.0,0.1]
[1747240756445,1.09351558,103510.0,103500.0,0.1]
[1747240756750,0.1932077,103500.0,103490.0,0.00096623]
[1747240756951,1.25986086,103500.0,103490.0,0.00096623]
[1747240757251,0.8896077,103500.0,103490.0,0.16296623]
[1747240757550,0.3188077,103500.0,103490.0,0.35619253]
[1747240757743,0.2256077,103500.0,103490.0,0.41819253]
[1747240758942,0.2256077,103500.0,103490.0,0.41919253]
[1747240759652,0.5864077,103500.0,103490.0,0.42481324]
[1747240759841,0.77153428,103500.0,103490.0,0.23158694]
[1747240760245,0.80293428,103500.0,103490.0,0.23158694]
[1747240763744,0.5864077,103500.0,103490.0,0.42481324]
[1747240763945,0.5864077,103500.0,103490.0,0.23158694]
[1747240764542,0.6180077,103500.0,103490.0,0.23158694]
[1747240765258,0.6180077,103500.0,103490.0,0.42481324]
[1747240765555,0.6180077,103500.0,103490.0,0.23158694]
[1747240765745,0.80313428,103500.0,103490.0,0.23158694]
[1747240765949,0.99826086,103500.0,103490.0,0.16958694]
[1747240766954,0.81313428,103500.0,103490.0,0.16958694]
[1747240767959,0.81313428,103500.0,103490.0,0.17978694]
[1747240768353,0.81313428,103500.0,103490.0,0.21008694]
[1747240768949,0.6280077,103500.0,103490.0,0.21008694]
[1747240769144,0.81313428,103500.0,103490.0,0.21008694]
[1747240770352,0.6280077,103500.0,103490.0,0.40331324]
[1747240770557,0.5864077,103500.0,103490.0,0.21008694]
[1747240770852,0.5864077,103500.0,103490.0,0.40331324]
[1747240771257,0.2256077,103500.0,103490.0,0.58843982]
[1747240771455,0.6989049,103510.0,103500.0,0.1932077]
[1747240771655,0.3381049,103510.0,103500.0,0.2878077]
[1747240771856,0.1932041,103510.0,103500.0,0.83373428]
[1747240772063,0.3719719,103520.0,103510.0,0.193189]
[1747240772251,0.3719719,103520.0,103510.0,0.256489]
[1747240772558,0.3719719,103520.0,103510.0,0.44161558]
[1747240772746,0.2917755,103520.0,103510.0,0.53822927]
[1747240773153,0.2917755,103520.0,103510.0,1.06102927]
[1747240773860,0.2937755,103520.0,103510.0,1.06102927]
[1747240774049,0.2937755,103520.0,103510.0,0.87590269]
[1747240774254,0.2967755,103520.0,103510.0,0.87590269]
[1747240775962,0.2967755,103520.0,103510.0,0.8815234]
[1747240778554,0.87330208,103520.0,103510.0,0.23092071]
[1747240778756,0.93750208,103520.0,103510.0,0.23092071]
[1747240779565,0.3273755,103520.0,103510.0,0.23092071]
[1747240779764,0.6881755,103520.0,103510.0,0.23092071]
[1747240780459,0.7208755,103520.0,103510.0,0.23092071]
[1747240780664,0.90600208,103520.0,103510.0,0.23092071]
[1747240780855,0.93630208,103520.0,103510.0,0.23092071]
[1747240781566,0.7511755,103520.0,103510.0,0.23092071]
[1747240781763,0.93630208,103520.0,103510.0,0.23092071]
[1747240781960,0.7511755,103520.0,103510.0,0.23092071]
[1747240782160,0.93630208,103520.0,103510.0,0.23092071]
[1747240783562,0.7511755,103520.0,103510.0,0.23092071]
[1747240783769,0.93630208,103520.0,103510.0,0.23092071]
[1747240784167,0.93630208,103520.0,103510.0,0.42410971]
[1747240784468,0.7511755,103520.0,103510.0,0.42410971]
[1747240784865,0.6881755,103520.0,103510.0,0.70584064]
[1747240785355,0.3273755,103520.0,103510.0,0.88151406]
[1747240785561,0.007,103520.0,103510.0,1.06664064]
[1747240785971,0.2001703,103520.0,103510.0,1.06664064]
[1747240786565,0.2331703,103520.0,103510.0,1.06664064]
[1747240787270,0.1961703,103520.0,103510.0,1.06664064]
[1747240787569,0.1961703,103520.0,103510.0,1.16324464]
[1747240787570,0.004,103520.0,103510.0,1.16324464]
[1747240787875,0.2414295,103540.0,103530.0,0.1931517]
[1747240788167,0.2744295,103540.0,103530.0,1.09987828]
[1747240788372,0.2744295,103540.0,103530.0,1.16517828]
[1747240788573,0.2744295,103540.0,103530.0,1.26178263]
[1747240788965,0.2764295,103540.0,103530.0,1.07665605]
[1747240789165,0.2764295,103540.0,103530.0,1.23865605]
[1747240789675,0.2744295,103540.0,103530.0,1.23865605]
[1747240789972,0.2754295,103540.0,103530.0,1.23865605]
[1747240790163,0.2754295,103540.0,103530.0,1.25283537]
[1747240790362,0.2764295,103540.0,103530.0,1.25283537]
[1747240790570,0.2774295,103540.0,103530.0,1.25283537]
[1747240790874,0.2764295,103540.0,103530.0,1.25283537]
[1747240791172,0.2794295,103540.0,103530.0,1.25283537]
[1747240792671,0.24482921,103560.0,103530.0,2.19372083]
[1747240792970,0.03474951,103560.0,103550.0,0.73904098]
[1747240793169,0.002,103560.0,103550.0,0.90104098]
[1747240793371,0.14725987,103570.0,103560.0,0.1930957]
[1747240793562,0.34033697,103570.0,103560.0,1.02114886]
[1747240793761,0.34033697,103570.0,103560.0,0.83602228]
[1747240794070,0.34033697,103570.0,103560.0,0.93259864]
[1747240794267,0.34033697,103570.0,103560.0,1.10449234]
[1747240794468,0.14725987,103570.0,103560.0,2.05337492]
[1747240794666,0.34033697,103570.0,103560.0,2.05337492]
[1747240794861,0.34433697,103570.0,103560.0,2.05337492]
[1747240795176,0.34433697,103570.0,103560.0,1.80337492]
[1747240795674,0.34733697,103570.0,103560.0,1.80337492]
[1747240795877,0.34733697,103570.0,103560.0,1.60835464]
[1747240797983,0.2000771,103570.0,103560.0,1.60835464]
[1747240800279,0.001,103580.0,103570.0,0.1930771]
[1747240800579,0.0324,103590.0,103580.0,0.1930584]
[1747240800770,0.45859786,103600.0,103590.0,0.1930398]
[1747240800977,0.45859786,103600.0,103590.0,0.81314453]
[1747240801169,0.45859786,103600.0,103590.0,0.7802398]
[1747240801375,0.45859786,103600.0,103590.0,1.06189613]
[1747240801778,0.45859786,103600.0,103590.0,0.87676955]
[1747240802078,1.00452444,103600.0,103590.0,0.162]
[1747240803185,0.1930584,103580.0,103570.0,0.2566766]
[1747240803372,0.5538584,103580.0,103570.0,0.2566766]
[1747240803574,0.6186584,103580.0,103570.0,0.35320635]
[1747240803771,0.6186584,103580.0,103570.0,0.0319]
[1747240803978,0.1930771,103570.0,103560.0,0.0317]
[1747240804279,0.2908771,103570.0,103560.0,0.4186957]
[1747240804680,0.2908771,103570.0,103560.0,0.162]
[1747240804681,0.6516771,103570.0,103560.0,0.162]
[1747240805473,0.6516771,103570.0,103560.0,0.3550957]
[1747240805674,0.6516771,103570.0,103560.0,0.162]
[1747240805871,0.6516771,103570.0,103560.0,0.3550957]
[1747240806080,0.6516771,103570.0,103560.0,0.3878957]
[1747240806691,0.6536771,103570.0,103560.0,0.1948]
[1747240806984,0.2928771,103570.0,103560.0,0.3878957]
[1747240807185,0.2928771,103570.0,103560.0,0.2258957]
[1747240807389,0.2938771,103570.0,103560.0,0.2258957]
[1747240807586,0.2938771,103570.0,103560.0,0.2569957]
[1747240807776,0.2938771,103570.0,103560.0,0.0639]
[1747240808087,0.6546771,103570.0,103560.0,0.2259]
[1747240808977,0.6546771,103570.0,103560.0,0.1948]
[1747240809176,0.6546771,103570.0,103560.0,0.2258957]
[1747240809380,0.6546771,103570.0,103560.0,0.0328]
[1747240809687,0.1930957,103560.0,103550.0,0.80225732]
[1747240809885,0.2578957,103560.0,103550.0,0.80225732]
[1747240810080,0.2578957,103560.0,103550.0,1.06081503]
[1747240811885,0.2578957,103560.0,103550.0,1.06181503]
[1747240812782,0.2251957,103560.0,103550.0,1.06181503]
[1747240812980,0.001,103570.0,103550.0,1.11871563]
[1747240813288,0.29647516,103600.0,103590.0,0.1930398]
[1747240813490,0.10344886,103600.0,103590.0,1.10538709]
[1747240813790,0.10109934,103600.0,103590.0,1.35511367]
[1747240813981,0.10109934,103600.0,103590.0,1.83000871]
[1747240814176,0.10109934,103600.0,103590.0,2.00145124]
[1747240814393,0.31622471,103620.0,103610.0,0.1930025]
[1747240814593,0.31622471,103620.0,103600.0,0.90003778]
[1747240814594,0.1930025,103610.0,103600.0,0.90003778]
[1747240814785,0.1930025,103610.0,103600.0,0.81978528]
[1747240814984,0.5953025,103610.0,103600.0,1.62912975]
[1747240815183,0.77042908,103610.0,103600.0,0.25852975]
[1747240815393,0.83092908,103610.0,103600.0,0.45155095]
[1747240815691,0.6458025,103610.0,103600.0,0.25852975]
[1747240815877,1.12092908,103610.0,103600.0,0.25852975]
[1747240816189,0.1930212,103600.0,103590.0,0.00755131]
[1747240816486,0.76954778,103600.0,103590.0,0.0019306]
[1747240816682,0.80174778,103600.0,103590.0,0.0019306]
[1747240816883,0.84174778,103600.0,103590.0,0.0019306]
[1747240817086,1.00374778,103600.0,103590.0,0.0019306]
[1747240817387,1.24652398,103600.0,103590.0,0.0019306]
[1747240818390,1.48442676,103600.0,103590.0,0.0019306]
[1747240818591,1.83595476,103600.0,103590.0,0.0019306]
[1747240818892,1.59305198,103600.0,103590.0,0.0019306]
[1747240819390,1.67395476,103600.0,103590.0,0.0019306]
[1747240819685,1.08452398,103600.0,103590.0,0.0019306]
[1747240819886,0.8416212,103600.0,103590.0,0.0019306]
[1747240820088,0.6166212,103600.0,103590.0,0.1949704]
[1747240820289,0.86452398,103600.0,103590.0,0.0019306]
[1747240820684,0.85952398,103600.0,103590.0,0.0019306]
[1747240820891,0.86452398,103600.0,103590.0,0.0019306]
[1747240821078,0.2608212,103600.0,103590.0,0.1949704]
[1747240821283,0.2608212,103600.0,103590.0,0.3885704]
[1747240821481,0.0322,103600.0,103590.0,1.12110293]
[1747240821784,0.1960212,103600.0,103590.0,0.98033606]
[1747240822187,0.003,103600.0,103590.0,0.98033606]
[1747240822382,0.1960212,103600.0,103590.0,0.98033606]
[1747240822579,0.1960212,103600.0,103590.0,0.97471535]
[1747240822783,0.003,103600.0,103590.0,1.21761813]
[1747240822986,0.1930212,103600.0,103590.0,1.21761813]
[1747240823184,0.1950212,103600.0,103590.0,1.21761813]
[1747240823579,0.1950212,103600.0,103590.0,0.97471535]
[1747240823784,0.1930212,103600.0,103590.0,0.97471535]
[1747240824289,0.321193,103620.0,103610.0,0.1930025]
[1747240824589,0.321193,103620.0,103600.0,0.6337654]
[1747240824590,0.1930025,103610.0,103600.0,0.6337654]
[1747240824792,0.1930025,103610.0,103600.0,0.1930141]
[1747240824990,0.1930212,103600.0,103590.0,0.894832]
[1747240825297,0.1930212,103600.0,103590.0,0.8465723]
[1747240825592,0.6183212,103600.0,103590.0,0.26045103]
[1747240825782,0.6504212,103600.0,103590.0,0.3569704]
[1747240826790,0.2916212,103600.0,103590.0,0.3569704]
[1747240826994,0.89532398,103600.0,103590.0,0.1639306]
[1747240827893,1.50822676,103600.0,103590.0,0.1639306]
[1747240828088,0.1930398,103590.0,103580.0,0.00144802]
[1747240828294,1.38104258,103590.0,103580.0,0.00144802]
[1747240828492,1.47758258,103590.0,103580.0,0.00144802]
[1747240828799,0.1930584,103580.0,103570.0,0.09206424]
[1747240829098,0.1930957,103560.0,103550.0,0.2466534]
[1747240829397,1.75050126,103560.0,103550.0,0.2466534]
[1747240829593,0.1931144,103550.0,103540.0,0.66967456]
[1747240829798,1.18891718,103550.0,103540.0,0.56247986]
[1747240829997,1.53549318,103550.0,103540.0,0.56247986]
[1747240830803,1.53549318,103550.0,103540.0,0.56347986]
[1747240831091,1.53549318,103550.0,103540.0,0.72547986]
[1747240831297,1.56759318,103550.0,103540.0,0.72547986]
[1747240831501,1.56759318,103550.0,103540.0,0.66637766]
[1747240831800,1.56859318,103550.0,103540.0,0.66637766]
[1747240831989,1.56859318,103550.0,103540.0,0.163]
[1747240832190,0.1931703,103520.0,103510.0,0.24341109]
[1747240832391,0.5539703,103520.0,103510.0,0.24341109]
[1747240832593,0.5869703,103520.0,103510.0,0.24341109]
[1747240832787,0.6825437,103530.0,103520.0,0.1931703]
[1747240832992,0.7155437,103530.0,103520.0,0.1931703]
[1747240833302,0.1931703,103520.0,103510.0,0.00193209]
[1747240833489,0.2581703,103520.0,103510.0,0.19912109]
[1747240833687,0.2261703,103520.0,103510.0,0.29571611]
[1747240833890,0.1931703,103520.0,103510.0,0.65651611]
[1747240834090,0.4030419,103530.0,103520.0,0.1951703]
[1747240834290,0.6988071,103540.0,103530.0,0.1931517]
[1747240834590,0.7641071,103540.0,103530.0,0.1931517]
[1747240834785,0.6022137,103550.0,103540.0,0.193133]
[1747240834985,0.2573321,103550.0,103540.0,0.46733578]
[1747240835290,0.2264321,103550.0,103540.0,0.747233]
[1747240835486,0.2264321,103550.0,103540.0,0.65067636]
[1747240835687,0.2573321,103550.0,103540.0,0.65067636]
[1747240835894,0.2573321,103550.0,103540.0,0.5541]
[1747240836206,0.2573321,103550.0,103540.0,0.747233]
[1747240836392,0.2593321,103550.0,103540.0,0.747233]
[1747240837097,0.2593321,103550.0,103540.0,0.5541]
[1747240837497,0.50223488,103550.0,103540.0,0.5228]
[1747240837702,1.13403488,103550.0,103540.0,0.162]
[1747240838001,1.16593488,103550.0,103540.0,0.162]
[1747240838406,0.1931517,103530.0,103520.0,0.0328]
[1747240838595,0.5739517,103530.0,103520.0,0.0328]
[1747240838805,0.1931703,103520.0,103510.0,0.00193209]
[1747240839096,0.2545703,103520.0,103510.0,0.22792109]
[1747240839305,0.1931703,103520.0,103510.0,0.92822822]
[1747240839797,0.1931703,103520.0,103510.0,0.56742822]
[1747240840005,0.5539703,103520.0,103510.0,0.32452544]
[1747240840207,0.5848703,103520.0,103510.0,0.48952544]
[1747240840792,0.6173703,103520.0,103510.0,0.39292109]
[1747240840997,0.5848703,103520.0,103510.0,0.39292109]
[1747240841195,0.1931703,103520.0,103510.0,0.63582387]
[1747240841411,0.1931703,103520.0,103510.0,1.09322822]
[1747240841603,0.1931703,103520.0,103510.0,1.12542822]
[1747240841808,0.1931703,103520.0,103510.0,0.52572544]
[1747240842103,0.6188703,103520.0,103510.0,0.33253644]
[1747240842307,0.6188703,103520.0,103510.0,0.23593209]
[1747240843199,0.86177308,103520.0,103510.0,0.20373209]
[1747240843398,0.86177308,103520.0,103510.0,0.17093209]
[1747240843606,0.88177308,103520.0,103510.0,0.17093209]
[1747240844497,1.08407308,103520.0,103510.0,0.17093209]
[1747240845403,1.08407308,103520.0,103510.0,0.00893209]
[1747240845701,1.18067708,103520.0,103510.0,0.00893209]
[1747240846100,1.67357986,103520.0,103510.0,0.16200009]
[1747240846407,0.193189,103510.0,103500.0,0.1]
[1747240846712,1.19789178,103510.0,103500.0,0.1]
[1747240846894,1.00789178,103510.0,103500.0,0.1]
[1747240847206,0.764989,103510.0,103500.0,0.262]
[1747240847404,1.00789178,103510.0,103500.0,0.262]
[1747240847607,1.00789178,103510.0,103490.0,0.00241557]
[1747240847608,0.1932077,103500.0,103490.0,0.00241557]
[1747240847906,0.193245,103480.0,103470.0,0.03240003]
[1747240848201,0.554045,103480.0,103470.0,0.19440003]
[1747240848408,0.616545,103480.0,103470.0,0.41916373]
[1747240848591,0.255745,103480.0,103470.0,0.41916373]
[1747240850002,0.260745,103480.0,103470.0,0.42478444]
[1747240850191,0.01,103480.0,103470.0,0.42478444]
[1747240850396,0.203245,103480.0,103470.0,1.12512892]
[1747240850597,0.01,103480.0,103470.0,1.12512892]
[1747240850807,0.1932077,103500.0,103490.0,0.2898142]
[1747240850997,0.616589,103510.0,103500.0,0.1932077]
[1747240851197,0.255789,103510.0,103500.0,0.3552077]
[1747240851391,0.255789,103510.0,103500.0,0.4195077]
[1747240851813,0.616589,103510.0,103500.0,0.4195077]
[1747240852005,0.619589,103510.0,103500.0,0.4195077]
[1747240852404,0.587789,103510.0,103500.0,0.4195077]
[1747240852699,0.003,103510.0,103500.0,1.15152417]
[1747240852907,0.196189,103510.0,103500.0,1.15152417]
[1747240853096,0.196189,103510.0,103500.0,0.90862139]
[1747240853703,0.79989178,103510.0,103500.0,0.258]
[1747240853905,0.86429178,103510.0,103500.0,0.2263]
[1747240854307,0.86129178,103510.0,103500.0,0.2263]
[1747240854604,0.618389,103510.0,103500.0,0.4215077]
[1747240854795,0.618389,103510.0,103500.0,0.4532077]
[1747240855000,0.227089,103510.0,103500.0,0.4532077]
[1747240855202,0.194189,103510.0,103500.0,0.4512077]
[1747240855404,0.194189,103510.0,103500.0,0.8120077]
[1747240856603,0.194189,103510.0,103500.0,0.4512077]
[1747240856916,0.193189,103510.0,103500.0,0.4522077]
[1747240857911,0.79689178,103510.0,103500.0,0.259]
[1747240858098,0.86219178,103510.0,103500.0,0.259]
[1747240858500,0.619289,103510.0,103500.0,0.4522077]
[1747240858898,0.620289,103510.0,103500.0,0.4522077]
[1747240859103,0.620289,103510.0,103500.0,0.259]
[1747240859803,0.86319178,103510.0,103500.0,0.258]
[1747240860007,0.88419178,103510.0,103500.0,0.2253]
[1747240860402,1.33280378,103510.0,103500.0,0.162]
[1747240860609,1.58280378,103510.0,103500.0,0.1328397]
[1747240861206,0.1932263,103490.0,103480.0,0.0622]
[1747240861408,0.79692908,103490.0,103480.0,0.0622]
[1747240861601,0.85872908,103490.0,103480.0,0.0622]
[1747240861796,0.85872908,103490.0,103480.0,0.255445]
[1747240862115,0.85872908,103490.0,103480.0,0.2242]
[1747240862409,0.85872908,103490.0,103480.0,0.162]
[1747240863709,0.86172908,103490.0,103480.0,0.162]
[1747240864211,0.86272908,103490.0,103480.0,0.162]
[1747240864507,1.27352908,103490.0,103480.0,0.162]
[1747240864713,0.193245,103480.0,103470.0,0.00562074]
[1747240864899,0.1932824,103460.0,103450.0,0.0311666]
[1747240865100,0.5540824,103460.0,103450.0,0.3864676]
[1747240865301,0.338227,103470.0,103460.0,0.1932824]
[1747240865508,0.681481,103480.0,103470.0,0.1932637]
[1747240865806,0.683481,103480.0,103470.0,0.2545637]
[1747240866004,0.2743662,103480.0,103470.0,0.2545637]
[1747240866205,0.1932543,103480.0,103470.0,0.4165637]
[1747240866406,0.4057678,103490.0,103480.0,0.191245]
[1747240866607,0.2783482,103490.0,103480.0,0.283545]
[1747240866805,0.2773482,103490.0,103480.0,0.283545]
[1747240867006,0.6381482,103490.0,103480.0,0.0923]
[1747240867205,0.3051482,103490.0,103480.0,0.447545]
[1747240867416,0.3051482,103490.0,103480.0,0.45316571]
[1747240867604,0.6659482,103490.0,103480.0,0.25992071]
[1747240868107,0.3051482,103490.0,103480.0,0.45316571]
[1747240868305,0.6659482,103490.0,103480.0,0.26092071]
[1747240869911,0.6669482,103490.0,103480.0,0.23332071]
[1747240870206,0.91085098,103490.0,103480.0,0.23232071]
[1747240871007,0.91085098,103490.0,103480.0,0.20062071]
[1747240871215,0.97085098,103490.0,103480.0,0.16762071]
[1747240871415,0.94405098,103490.0,103480.0,0.16762071]
[1747240871605,1.30405098,103490.0,103480.0,0.16762071]
[1747240872816,1.40068298,103490.0,103480.0,0.16762071]
[1747240873310,1.40068298,103490.0,103480.0,0.00562071]
[1747240874404,1.40068298,103490.0,103480.0,1e-08]
[1747240875508,0.193245,103480.0,103470.0,0.00193283]
[1747240875814,1.41485056,103480.0,103470.0,3e-08]
[1747240876013,1.76149056,103480.0,103470.0,3e-08]
[1747240876315,1.51149056,103480.0,103470.0,3e-08]
[1747240876712,1.26858778,103480.0,103470.0,0.00100003]
[1747240876912,1.17194778,103480.0,103470.0,0.00100003]
[1747240877110,0.929045,103480.0,103470.0,0.00100003]
[1747240877314,1.17194778,103480.0,103470.0,0.00100003]
[1747240877917,1.17172733,103480.0,103470.0,0.00100003]
[1747240878112,1.17172733,103480.0,103470.0,0.16300003]
[1747240878311,1.17572733,103480.0,103470.0,0.16300003]
[1747240879319,1.17672733,103480.0,103470.0,0.16200003]
[1747240879520,1.17672733,103480.0,103470.0,0.16762074]
[1747240880117,1.17572733,103480.0,103470.0,0.16762074]
[1747240880313,1.17672733,103480.0,103470.0,0.16762074]
[1747240881921,1.41963011,103480.0,103470.0,0.16762074]
[1747240882111,1.17672733,103480.0,103470.0,0.00562074]
[1747240882617,1.41963011,103480.0,103470.0,4e-08]
[1747240882821,0.1932824,103460.0,103450.0,0.1629666]
[1747240883009,1.41778518,103460.0,103450.0,0.1629666]
[1747240883207,1.48148518,103460.0,103450.0,0.0009666]
[1747240883415,0.193301,103450.0,103440.0,0.03425008]
[1747240883723,1.24795946,103450.0,103440.0,0.00145008]
[1747240883919,1.28095946,103450.0,103440.0,0.00145008]
[1747240884222,1.28095946,103450.0,103440.0,0.16345008]
[1747240884521,1.26095946,103450.0,103440.0,0.16345008]
[1747240885217,0.91495946,103450.0,103440.0,0.16345008]
[1747240885521,0.619401,103450.0,103440.0,0.19625008]
[1747240885717,0.709401,103450.0,103440.0,0.22795008]
[1747240885917,0.588901,103450.0,103440.0,0.42126978]
[1747240886112,0.589901,103450.0,103440.0,0.22795008]
[1747240886307,0.559101,103450.0,103440.0,0.42126978]
[1747240886513,0.198301,103450.0,103440.0,0.66417256]
[1747240886720,0.194301,103450.0,103440.0,0.78206978]
[1747240887021,0.197301,103450.0,103440.0,0.42126978]
[1747240887523,0.001,103450.0,103440.0,1.46831028]
[1747240887724,0.2899363,103460.0,103450.0,0.193301]
[1747240887910,0.2899363,103460.0,103450.0,0.618901]
[1747240888116,0.1932913,103460.0,103450.0,1.02380378]
[1747240888307,0.1932913,103460.0,103450.0,1.1204735]
[1747240888618,0.1932913,103460.0,103450.0,1.4671335]
[1747240888818,0.6507172,103470.0,103460.0,0.1932824]
[1747240889013,0.6507172,103470.0,103460.0,0.2555824]
[1747240889214,0.6507172,103470.0,103460.0,0.4175824]
[1747240889421,0.6507172,103470.0,103460.0,0.2243]